Cogmind - Beta 14 @@@ ROGUE MODE // 2025.04.29 @ 02:39:33 Player: Zonalar Result: Destroyed by as-47550 with Assembled Rifle Performance ------------- Evolutions (0) 0 Regions Visited (2) 400 Robots Destroyed (39) 195 Value Destroyed (779) 779 Prototype IDs (3) 60 Alien Tech Used (0) 0 Bonus (0) 0 TOTAL SCORE: 1434 Bonus ------- None Cogmind --------- Core Integrity 0/250 Matter 270/300 Energy 80/265 System Corruption 9% Temperature Cool (28) Movement Core (500) Ox9 Location -10/Mines Parts ------- > --- POWER (1) -------- Improved Ion Engine > --- PROPULSION (2) --- (None) > --- UTILITY (2) ------ Large Storage Unit Targeting Computer > --- WEAPON (2) ------- Improved EM Shotgun > --- INVENTORY (15) --- Improved Aluminum Leg Improved Aluminum Leg Large Matter Pod (150) Sensor Array Signal Interpreter Improved Terrain Scanner Seismic Detector Light Armor Plating Light Armor Plating Light Armor Plating Improved EM Shotgun Beam Rifle Beam Cannon Mining Laser Peak State ------------ > --- POWER ------------ Improved Ion Engine > --- PROPULSION ------- Improved Aluminum Leg Improved Aluminum Leg > --- UTILITY ---------- Large Storage Unit Sensor Array > --- WEAPON ----------- Improved EM Shotgun Improved EM Shotgun > --- INVENTORY -------- Improved Ion Engine Improved Ion Engine Aluminum Leg Aluminum Leg Improved Aluminum Leg Improved Aluminum Leg Improved Heat Sink Medium Storage Unit High-capacity Battery Large Matter Pod Improved Terrain Scanner Seismic Detector Improved EM Shotgun Small Laser Mining Laser [Rating: 16] Favorites ----------- Power Improved Ion Engine Engine Improved Ion Engine Propulsion Improved Aluminum Leg Leg Improved Aluminum Leg Utility Large Storage Unit Device Sensor Array Storage Large Storage Unit Processor Targeting Computer Weapon Improved EM Shotgun Energy Gun Improved EM Shotgun Energy Cannon Beam Cannon Ballistic Gun Assault Rifle Launcher Grenade Launcher Special Weapon Mining Laser Build | -11 -10 -10 ------- Run | Yrd Mat Min Slots Evolved . | . . . Power . | . . . Propulsion . | . . . Utility . | . . . Weapon . | . . . Parts Attached 32 | 7 23 2 Power 5 | 1 3 1 Engine 5 | 1 3 1 Core . | . . . Reactor . | . . . Propulsion 7 | 2 5 . Treads . | . . . Leg 7 | 2 5 . Wheel . | . . . Hover . | . . . Flight . | . . . Utility 8 | 2 6 . Device 4 | 1 3 . Storage 3 | 1 2 . Processor 1 | . 1 . Hackware . | . . . Protection . | . . . Artifact . | . . . Weapon 12 | 2 9 1 Energy Gun 7 | 1 6 . Energy Cannon 1 | . 1 . Ballistic Gun 1 | 1 . . Ballistic Cannon . | . . . Launcher 1 | . . 1 Special Weapon 2 | . 2 . Impact Weapon . | . . . Slashing Weapon . | . . . Piercing Weapon . | . . . Special Melee Weapon . | . . . Unidentified Prototypes 1 | . 1 . Parts Lost 9 | . 5 4 Power 3 | . 2 1 Propulsion 2 | . . 2 Utility 1 | . 1 . Weapon 3 | . 2 1 Highest Loss Streak 4 | . 3 4 To Critical Strikes . | . . . Average Slot Usage (%) 97 | . 97 85 Engine 12 | . 12 7 Leg 28 | . 28 28 Device 10 | . 10 . Storage 14 | . 14 14 Processor 2 | . 2 14 Energy Gun 22 | . 22 14 Energy Cannon 1 | . 1 7 Ballistic Gun 2 | . 2 . Peak Build Rating 16 | 8 16 14 Average Rating 11 | 5 12 12 On Entrance 7 | . 8 14 Naked Turns . | . . . Heaviest Build 34 | 15 34 33 Greatest Support 26 | 20 26 26 Greatest Overweight (x) 1 | 1 1 1 Average Overweight (x) . | . . 1 Largest Inventory Capacity 15 | 8 15 15 Average Capacity 12 | 7 13 15 Most Carried 15 | 8 15 15 Average Carried 11 | 4 12 15 Final Capacity 15 | 8 15 15 Final Carried 15 | 8 15 14 Class Distribution -------------------- 100% | Mutant Dominant Class ---------------- Mutant | -10/Materials Mutant | -10/Mines Resources | -11 -10 -10 ----------- Run | Yrd Mat Min Matter Collected 886 | 348 538 . Remotely . | . . . Salvage Created 1473 | 163 1285 25 Parts 77 | 14 63 . Haulers Intercepted 2 | . 2 . Recyclers Shooed 4 | . 4 . Parts Field Recycled . | . . . Retrieved Matter . | . . . Parts Self-Destructed . | . . . Prevented . | . . . Kills | -11 -10 -10 ------- Run | Yrd Mat Min Combat Hostiles Destroyed 25 | . 23 2 Guns 22 | . 22 . AOE 3 | . 1 2 Classes Destroyed 9 | 3 5 1 Worker 2 | 2 . . Tunneler 3 | 3 . . Hauler 2 | . 2 . Recycler 5 | 1 4 . Mechanic 1 | . 1 . Watcher 3 | . 3 . Swarmer 6 | . 6 . Grunt 17 | . 17 . Assembled 2 | . . 2 Best Kill Streak 5 | 2 5 2 Combat Bots Only 4 | . 4 2 Max Kills in Single Turn 2 | 1 2 2 Gunslinging 1 | . 1 . Exploded 2 | . 1 2 Melee . | . . . Uniques/NPCs Destroyed . | . . . Combat | -11 -10 -10 -------- Run | Yrd Mat Min Hostile Shots Fired 158 | . 121 37 Missed 54 | . 42 12 Damage Taken 1457 | . 1043 414 Core 258 | . 133 125 Absorbed by Shields . | . . . Core Remaining (%) 100 | 100 . . Volleys Fired 116 | 13 102 1 Largest 2 | 2 2 2 Hottest 101 | 70 101 75 Shots Fired 215 | 26 187 2 Gun 202 | 26 175 1 Cannon . | . . . Launcher 1 | . . 1 Special 12 | . 12 . Kinetic 64 | 13 51 . Thermal 122 | 13 109 . Explosive 1 | . . 1 Electromagnetic 28 | . 27 1 Robot Hit Streak 14 | 3 14 3 Robot Miss Streak 4 | 4 4 1 Penetration Max . | . . . Secondary Targets 2 | . 2 . Max Gunslinging Chain 1 | . 1 . Shots Hit Robots 134 | 11 121 2 Core Hits 64 | 6 52 6 Critical Kills 1 | . 1 . Critical Parts Destroyed . | . . . Critical Strikes 5 | 1 4 . Burn 4 | 1 3 . Destroy 1 | . 1 . Melee Attacks . | . . . Impact . | . . . Slashing . | . . . Piercing . | . . . Sneak Attacks . | . . . Combat Hostiles . | . . . Follow-up Attacks . | . . . Damage Inflicted 2092 | 149 1742 201 Guns 1890 | 149 1722 19 Cannons . | . . . Explosions 202 | . 20 182 Melee . | . . . Ramming . | . . . Kinetic 551 | 87 464 . Thermal 922 | 62 860 . Explosive 182 | . . 182 Electromagnetic 437 | . 418 19 Impact . | . . . Slashing . | . . . Piercing . | . . . Highest Corruption 6 | . 6 6 Average Corruption 6 | . 6 6 Corruption Purged . | . . . Corruption Blocked . | . . . Effects 15 | . 15 . Message Errors 7 | . 7 . Matter Fused 4 | . 4 . Heat Flow Errors 1 | . 1 . Data Loss (minor) 1 | . 1 . Data Loss (major) 2 | . 2 . Overload Shots . | . . . Overflow Damage 3 | . . 3 Projectiles . | . . . Explosions 3 | . . 3 Melee . | . . . Knockbacks . | . . . Impact . | . . . Kinetic . | . . . Secondary . | . . . Self-Inflicted Damage 37 | . 22 15 Shots 2 | . 1 1 Rammed . | . . . Targets Rammed . | . . . Kicked . | . . . Crushed . | . . . Highest Temperature 368 | 54 368 99 Average Temperature 49 | 18 53 45 Received Heat Transfer 402 | . 282 120 Siege Activations . | . . . Robots Corrupted . | . . . Combat Hostiles . | . . . Parts Fried 2 | . 2 . Impact Corruptions . | . . . Robots Melted . | . . . Combat Hostiles . | . . . Parts Melted 5 | 2 3 . Heat Transferred 2793 | 259 2534 . Parts Sabotaged . | . . . Parts Stolen . | . . . Parts Stripped . | . . . Power Chain Reactions 1 | . 1 . Alert | -11 -10 -10 ------- Run | Yrd Mat Min Peak Influence 354 | 30 354 57 Initial 57 | . 19 57 Average 178 | 14 199 53 Maximum Alert Level 1 | . 1 . Low Security (%) 59 | 100 54 100 Level 1 40 | . 45 . Level 2 . | . . . Level 3 . | . . . Level 4 . | . . . Level 5 . | . . . High Security . | . . . Max Security . | . . . Squads Dispatched 5 | . 5 . Investigation 5 | . 5 . Extermination . | . . . Reinforcement . | . . . Assault . | . . . Garrison . | . . . Intercept . | . . . Searches Triggered . | . . . Construction Impeded . | . . . Haulers Reinforced . | . . . Active Scanning Responses . | . . . Cargo Convoy Interrupts . | . . . Stealth | -11 -10 -10 --------- Run | Yrd Mat Min Distress Signals . | . . . Communications Jammed . | . . . Distress Signals . | . . . Times Spotted 54 | . 34 20 Peak Tracking Total 20 | . 7 20 Tactical Retreats 1 | . 1 . Traps | -11 -10 -10 ------- Run | Yrd Mat Min Traps Triggered 2 | . 2 . Indirectly . | . . . Trap Hack Attempts . | . . . Triggered . | . . . Disarmed . | . . . Reprogrammed . | . . . Reused . | . . . Traps Extracted . | . . . Installed . | . . . Triggered . | . . . Machines | -11 -10 -10 ---------- Run | Yrd Mat Min Machines Disabled 1 | . 1 . Max in Single Turn 1 | . 1 . Machines Repaired . | . . . Machines Dismantled . | . . . Machines Sabotaged . | . . . Overloaded Fab Kills . | . . . Hacking | -11 -10 -10 --------- Run | Yrd Mat Min Machines Accessed 10 | . 10 . Terminals 8 | . 8 . Fabricators . | . . . Repair Stations 1 | . 1 . Recycling Units 1 | . 1 . Scanalyzers . | . . . Garrison Access . | . . . Total Hacks 36 | . 36 . Successful 19 | . 19 . Failed 16 | . 16 . Catastrophic 3 | . 3 . Database Lockouts 1 | . 1 . Manual 21 | . 21 . Terminals 34 | . 34 . Fabricators . | . . . Repair Stations 1 | . 1 . Recycling Units 1 | . 1 . Scanalyzers . | . . . Garrison Access . | . . . Terminal Hacks 16 | . 16 . Record 1 | . 1 . Part Schematic 1 | . 1 . Robot Analysis 4 | . 4 . Prototype ID Bank 1 | . 1 . Branch Access Points 1 | . 1 . Emergency Access Points 2 | . 2 . Locate Traps 2 | . 2 . Dispatch Records 1 | . 1 . Maintenance Status 1 | . 1 . Hauler Manifests 1 | . 1 . Registered Components 1 | . 1 . Fabricator Hacks . | . . . Repair Station Hacks . | . . . Recycling Unit Hacks 1 | . 1 . Retrieve Components 1 | . 1 . Scanalyzer . | . . . Garrison Access Hacks . | . . . Unauthorized Hacks 2 | . 2 . Terminals 2 | . 2 . Assimilate 1 | . 1 . Operators 1 | . 1 . Fabricators . | . . . Repair Stations . | . . . Recycling Units . | . . . Scanalyzers . | . . . Garrison Access . | . . . Data Cores Recovered . | . . . Used . | . . . Hacking Detections 10 | . 10 . Full Trace Events 5 | . 5 . Feedback Events . | . . . Feedback Blocked . | . . . Robot Schematics Acquired . | . . . Robots Built . | . . . Authchips . | . . . Time . | . . . Total Robot Build Rating . | . . . Part Schematics Acquired 1 | . 1 . Parts Built . | . . . Authchips . | . . . Time . | . . . Total Part Build Rating . | . . . Parts Repaired . | . . . Time . | . . . Parts Recycled . | . . . Recycled Matter . | . . . Retrieved Matter . | . . . Retrieved Components 9 | . 9 . Parts Scanalyzed . | . . . Part Schematics Acquired . | . . . Parts Damaged . | . . . Bothacking | -11 -10 -10 ------------ Run | Yrd Mat Min Used RIF Installer . | . . . Robots Hacked . | . . . Non-combat . | . . . Combat . | . . . Robot Hacks Applied . | . . . Relay Couplers Released . | . . . Fabnet Peak Effective % . | . . . Robots Rewired . | . . . Allies Hacked . | . . . Hacks Repelled . | . . . Allies | -11 -10 -10 -------- Run | Yrd Mat Min Total Allies 1 | . 1 . Largest Group 1 | . 1 . Highest-Rated Group 10 | . 10 . Highest-Rated Ally 10 | . 10 . Total Orders . | . . . Ally Attacks . | . . . Total Damage . | . . . Kills . | . . . Allies Corrupted . | . . . Allies Melted . | . . . Intel | -11 -10 -10 ------- Run | Yrd Mat Min Robot Analysis Total 3 | . 3 . Derelict Logs Recovered . | . . . Drone Launches . | . . . Drone Recoveries . | . . . Exploration | -11 -10 -10 ------------- Run | Yrd Mat Min Turns Passed 2131 | 223 1895 13 Spaces Moved 989 | 138 847 4 Core 20 | 20 . . Treads . | . . . Legs 969 | 118 847 4 Wheels . | . . . Hover . | . . . Flight . | . . . Fastest Speed 50 | 50 120 190 Average Speed 161 | 111 170 190 Slowest Speed 190 | 120 190 190 Overloaded Moves . | . . . Propulsion Burnouts . | . . . Robots Hopped . | . . . Cave-ins Triggered 1 | . 1 . Exploration Rate (%) 35 | 4 94 8 Regions Visited 2 Branch Regions 1 Pre-discovered Areas . | . . . Known Exits Taken 1 | . 1 . Unknown Exits Taken 1 | 1 . . Scrap Searched . | . . . Spaces Dug 11 | . 11 . Terrain Destroyed 23 | . 13 10 Melee . | . . . Projectile 11 | . 11 . AOE 12 | . 2 10 Terrain Rammed . | . . . Walls Destroyed . | . . . Machines Disabled . | . . . Actions | -11 -10 -10 --------- Run | Yrd Mat Min Total 1288 | 180 1101 7 Wait 69 | 9 60 . Move 987 | 137 846 4 Hop . | . . . Pick Up 53 | 14 39 . Fast Attach 2 | 1 1 . Attach 14 | 6 7 1 Detach . | . . . Swap 16 | . 15 1 Drop 31 | . 31 . Fire 116 | 13 102 1 Melee . | . . . Ram . | . . . Kick . | . . . Crush . | . . . Escape Stasis . | . . . Rewire . | . . . Trap . | . . . Miscellaneous . | . . . Route ------- -11/Scrapyard -10/Materials (discovered 5 exits: [*Mat x3] / *Min x2) -10/Mines History --------- Turn | Location | Event 8 | -11/Scrapyard | Discovered new exit (range 15) 224 | -11/Scrapyard | Entered Materials 301 | -10/Materials | Build established: Mutant 794 | -10/Materials | Core integrity fell below 50% 1004 | -10/Materials | Discovered new exit (range 3) 1068 | -10/Materials | Discovered new exit (range 15) 1259 | -10/Materials | Discovered new exit (range 6) 1283 | -10/Materials | Identified exit to Mines 1676 | -10/Materials | Crushed by falling debris 1707 | -10/Materials | Lost 3 parts (1p1u1w) 1834 | -10/Materials | Discovered new exit (range 16) 2033 | -10/Materials | Central database locked down 2119 | -10/Materials | Entered Mines 2120 | -10/Mines | Assembled infested the area 2127 | -10/Mines | Core integrity fell below 20% 2132 | -10/Mines | Destroyed by as-47550 with Assembled Rifle Last Messages --------------- LOCATION=MINES GOAL=ESCAPE 02120_ ALERT: Infestation in the mines, dispatching Demolisher response squad. [Achievement: Hunted] 02123_ 7K-ORG(h): "I'll hold them off! Go on ahead or try to find another way!" 02123_ Penetrated by HV Slug. 02124_ 7K-ORG(h) system corrupted by crushing effect. 02124_ 7K-ORG(h) knocked back. 02124_ HV Slug penetrates Wall. 02125_ 7K-ORG(h) system terminally corrupted. 02125_ as-29904 destroyed. 02125_ as-60213 destroyed. 02125_ Destroyed Asb. Hover Unit. 02125_ Grenade Launcher destroyed. 02127_ Critical hit (Burn: +80). 02129_ Imp. Ion Engine destroyed. 02130_ Imp. Aluminum Leg destroyed. 02132_ System corrupted by crushing effect (+3). Map ----- +----------------------------------------------------+ | ?????????????????????????????????????????????????? | | ?????????????????????????????????????????????????? | | ?????????????????????????????????????????????????? | | ?????????????????????????????????????????????????? | | ?????????????????????????????????????????????????? | | ?????????????????????????????????????????????????? | | ?????????????????????????????????????????????????? | | ?????????????????????????????????????????????????? | | ?????????????????????????????????????????????????? | | ?????????????????????????????????????????????????? | | ?????????????????????????????????????????????????? | | ?????????????????????????????????????????????????? | | ?????????????????????????????????????????????????? | | ?????????????????????????????????????????????????? | | ?????????????????????????????????????????????????? | | ?????????????????????????????????????????????????? | | ????????????????????????????????#????????????????? | | ??????????????????????????????? ?????????????????? | | ?????????????????????????????? #?????????????????? | | ?????????????????????????????? #?????????????????? | | ????????????????????????????? #?????????????????? | | ????????????????????????????# ####??????????????? | | ??????????????????????????## ???????????????? | | ????????????????????????## """ ???????????????? | | ????????????????????????# """ #?????????????? | | ???????????????????????##@ """ #?????????????? | | ???????????????????#####aa #?????????????? | | ?????????????????### aa %## #????????????? | | ?????????????????#" a aa;#??? ??????????? | | ?????????????????# aa ##????? #### ?????????? | | ???????????????# a aa #????????#?????????????? | | ??????????????# $ % #??????????????????????? | | ??????????????# ## #??????????????????????? | | ?????????????# ??# %a #??????????????????????? | | ???????????? ???# # #??????????????????????? | | ??????????? ????# # ??????????????????????? | | ??????????? ?????# ??????????????????????? | | ???????????? ??????#### ??????????????????????? | | ??????????????????????# ?????????????????????? | | ??????????????????????# ?????????????????????? | | ??????????????????????# ?????????????????????? | | ???????????????????????# ?????????????????????? | | ????????????????????????# ???????????????????????? | | ?????????????????????????#???????????????????????? | | ?????????????????????????????????????????????????? | | ?????????????????????????????????????????????????? | | ?????????????????????????????????????????????????? | | ?????????????????????????????????????????????????? | | ?????????????????????????????????????????????????? | | ?????????????????????????????????????????????????? | +----------------------------------------------------+ Best States ------------- Heat Dissipation 25 Energy Generation 12 Energy Capacity 265 Matter Stores 300 Matter Capacity 300 Sight Range 16 Robot Scan Range 14 Terrain Scan Range 16 Terrain Scan Density 10 Evasion (%) 55 Targeting Accuracy 5 Item Schematics ----------------- Lrg. Storage Unit | -10/Materials | Hacked Robot Schematics ------------------ None Fabricated ------------ Nothing Alien Tech Used ----------------- None Achievements -------------- Hunted Challenges ------------ None Game ------ Seed ThiefHypercooledArchive Manual? 0 Play Time 01:04:16 Cumulative 24.3 hours Start 2025.04.29 @ 00:52:09 End 2025.04.29 @ 02:39:33 Sessions 1 Manual Loads 0 Difficulty Rogue Special Mode None Game No. 10 Rogue 10 Adventurer 0 Explorer 0 Win Type - Total 0 Types 0/0/0/0/0/0/0/0/0 Lore% 6 Gallery% 18 Achievement% 17 Wizard Run 0 Options --------- Layout 0 ASCII 0 Keyboard 0 Movement Mouse Keybinds 1 Fullscreen 2 Font 24/Smallcaps Map View 76x50 Zoom Use 0% Tactical HUD 1 Map Filters NONE Filters NONE Steam 1 RUN: 30e86dbf-5e7c-45a3-881e-d535d3b2ddb0